Cogmind - Beta 13 @@@ ROGUE MODE // 2024.04.03 @ 22:53:54 Player: Struisvogel Result: Destroyed by G-47 Trooper with Particle Gun Performance ------------- Evolutions (2) 1000 Regions Visited (3) 600 Robots Destroyed (46) 230 Value Destroyed (1133) 1133 Prototype IDs (0) 0 Alien Tech Used (0) 0 Bonus (8) 8 TOTAL SCORE: 2971 Bonus ------- High Alert Combat Kills 8 Cogmind --------- Core Integrity 0/550 Matter 23/300 Energy 98/100 System Corruption 0% Temperature Cool (9) Movement Core (50) Location -8/Materials Parts ------- > --- POWER (2) -------- (None) > --- PROPULSION (3) --- (None) > --- UTILITY (3) ------ Cooling System > --- WEAPON (3) ------- (None) > --- INVENTORY (5) ---- Aluminum Leg High-capacity Storage Unit Peak State ------------ > --- POWER ------------ Light Deuterium Engine Light Nuclear Core > --- PROPULSION ------- Aluminum Leg Titanium Leg Titanium Leg > --- UTILITY ---------- High-capacity Storage Unit Particle Charger Hardened Medium Armor Plating > --- WEAPON ----------- Heavy Laser Minigun High-powered Shotgun > --- INVENTORY -------- Light Nuclear Core Aluminum Leg Aluminum Leg Aluminum Leg Aluminum Leg Carbon-fiber Leg Cooling System Small Storage Unit High-capacity Storage Unit Recoil Stabilizer Field Recycling Unit Small Laser Beam Rifle Heavy Particle Cannon Light Assault Rifle Rocket Launcher Rocket Launcher [Rating: 33] Favorites ----------- Power Light Ion Engine Engine Light Ion Engine Power Core Light Nuclear Core Propulsion Light Treads Treads Light Treads Leg Titanium Leg Wheel Wheel Utility High-capacity Storage Unit Device Particle Charger Storage High-capacity Storage Unit Processor Visual Processing Unit Protection Propulsion Shielding Weapon Small Laser Energy Gun Small Laser Energy Cannon Beam Cannon Ballistic Gun High-powered Shotgun Launcher Grenade Launcher Build | -11 -10 -9 -8 ------- Run | Yrd Mat Mat Mat Slots Evolved 4 | . . 2 2 Power 1 | . . . 1 Propulsion 1 | . . . 1 Utility 1 | . . 1 . Weapon 1 | . . 1 . Parts Attached 48 | 5 6 7 30 Power 8 | 1 . 1 6 Engine 5 | 1 . 1 3 Core 3 | . . . 3 Reactor . | . . . . Propulsion 12 | 2 . 2 8 Treads 3 | . . 2 1 Leg 7 | . . . 7 Wheel 2 | 2 . . . Hover . | . . . . Flight . | . . . . Utility 11 | . 4 1 6 Device 3 | . . . 3 Storage 3 | . 3 . . Processor 1 | . 1 . . Hackware . | . . . . Protection 4 | . . 1 3 Artifact . | . . . . Weapon 17 | 2 2 3 10 Energy Gun 7 | 1 1 2 3 Energy Cannon 1 | . . . 1 Ballistic Gun 6 | 1 . 1 4 Ballistic Cannon . | . . . . Launcher 3 | . 1 . 2 Special Weapon . | . . . . Impact Weapon . | . . . . Slashing Weapon . | . . . . Piercing Weapon . | . . . . Special Melee Weapon . | . . . . Unidentified Prototypes . | . . . . Parts Lost 33 | . 4 4 25 Power 6 | . 1 . 5 Propulsion 9 | . 1 1 7 Utility 6 | . . 1 5 Weapon 12 | . 2 2 8 Highest Loss Streak 18 | . 3 2 18 To Critical Strikes 1 | . 1 . . Average Slot Usage (%) 87 | . 83 89 86 Engine 7 | . 7 10 5 Core 4 | . . . 10 Treads 7 | . . 13 6 Leg 6 | . . . 15 Wheel 6 | . 22 3 . Device 1 | . . . 4 Storage 10 | . 13 11 8 Processor 8 | . 11 11 4 Protection 6 | . . 8 7 Energy Gun 14 | . 14 25 6 Ballistic Gun 9 | . 8 2 14 Launcher 2 | . 5 3 . Naked Turns . | . . . . Heaviest Build 71 | 7 47 50 71 Greatest Support 60 | 20 20 40 60 Greatest Overweight (x) 21 | . 4 15 21 Average Overweight (x) 1 | . 1 2 1 Largest Inventory Capacity 20 | 5 20 20 20 Average Capacity 17 | 5 12 20 19 Most Carried 17 | 4 11 13 17 Average Carried 10 | 1 7 11 12 Final Capacity 20 | 5 20 20 5 Final Carried 12 | 4 11 12 2 Class Distribution -------------------- 31% | Mutant 27% | Scavenger-Tank 13% | Scavenger-Gunner 9% | Scavenger-Skirmisher 8% | Tank 6% | Scavenger-Mutant Dominant Class ---------------- Mutant | -10/Materials Scavenger-Tank | -9/Materials Scavenger-Tank | -8/Materials Resources | -11 -10 -9 -8 ----------- Run | Yrd Mat Mat Mat Matter Collected 882 | 263 177 90 352 Remotely . | . . . . Salvage Created 1105 | 33 304 236 532 Parts 84 | 2 16 19 47 Haulers Intercepted 1 | . 1 . . Recyclers Shooed . | . . . . Parts Field Recycled . | . . . . Retrieved Matter . | . . . . Parts Self-Destructed . | . . . . Prevented . | . . . . Kills | -11 -10 -9 -8 ------- Run | Yrd Mat Mat Mat Combat Hostiles Destroyed 37 | 1 10 9 17 Guns 25 | 1 4 6 14 Cannons 2 | . . . 2 AOE 10 | . 6 3 1 Classes Destroyed 9 | 1 5 1 2 Worker 2 | . 1 . 1 Builder 2 | . . . 2 Hauler 1 | . 1 . . Recycler 1 | . 1 . . Watcher 3 | . 2 . 1 Swarmer 19 | . 6 6 7 Grunt 14 | 1 4 1 8 Sentry 3 | . . 2 1 Hunter 1 | . . . 1 Best Kill Streak 7 | 1 7 3 5 Combat Bots Only 5 | 1 5 3 5 Max Kills in Single Turn 4 | 1 4 2 2 Gunslinging 1 | . 1 . 1 Exploded 2 | . 2 2 1 Melee . | . . . . Uniques/NPCs Destroyed . | . . . . Combat | -11 -10 -9 -8 -------- Run | Yrd Mat Mat Mat Hostile Shots Fired 284 | 6 51 43 184 Missed 77 | 3 12 10 52 Damage Taken 3503 | 34 475 472 2522 Core 780 | 23 140 63 554 Absorbed by Shields . | . . . . Redirected to Shielding 102 | . . 51 51 Core Remaining (%) 69 | 90 34 84 . Volleys Fired 132 | 5 21 26 80 Largest 3 | 2 2 3 3 Hottest 127 | 70 80 125 127 Shots Fired 284 | 10 40 74 160 Gun 257 | 10 35 70 142 Cannon 7 | . . . 7 Launcher 20 | . 5 4 11 Special . | . . . . Kinetic 117 | 5 14 4 94 Thermal 101 | 5 21 23 52 Explosive 20 | . 5 4 11 Electromagnetic 46 | . . 43 3 Robot Hit Streak 9 | 6 4 8 9 Robot Miss Streak 8 | 1 4 8 7 Penetration Max . | . . . . Secondary Targets 5 | . 1 2 2 Max Gunslinging Chain 1 | . 1 1 1 Shots Hit Robots 164 | 9 18 39 98 Core Hits 80 | 2 17 12 49 Critical Kills . | . . . . Critical Parts Destroyed . | . . . . Critical Strikes 4 | 1 . 3 . Burn 1 | 1 . . . Corrupt 3 | . . 3 . Melee Attacks . | . . . . Impact . | . . . . Slashing . | . . . . Piercing . | . . . . Sneak Attacks . | . . . . Combat Hostiles . | . . . . Follow-up Attacks . | . . . . Damage Inflicted 3647 | 115 966 638 1928 Guns 2104 | 108 211 441 1344 Cannons 85 | . . . 85 Explosions 1433 | . 737 197 499 Melee . | . . . . Ramming 25 | 7 18 . . Kinetic 1085 | 59 88 6 932 Thermal 1333 | 49 597 207 480 Explosive 901 | . 263 139 499 Electromagnetic 303 | . . 286 17 Impact . | . . . . Slashing . | . . . . Piercing . | . . . . Highest Corruption . | . . . . Average Corruption . | . . . . Corruption Purged . | . . . . Corruption Blocked . | . . . . Overload Shots . | . . . . Overflow Damage 53 | . 19 10 24 Projectiles . | . . . . Explosions 53 | . 19 10 24 Melee . | . . . . Knockbacks . | . . . . Impact . | . . . . Kinetic . | . . . . Secondary . | . . . . Self-Inflicted Damage 107 | 3 47 53 4 Shots 5 | . 1 3 1 Rammed 6 | 1 5 . . Targets Rammed 6 | 1 5 . . Kicked . | . . . . Crushed . | . . . . Highest Temperature 508 | 63 56 362 508 Average Temperature 131 | 30 18 107 165 Received Heat Transfer 1119 | 18 165 189 747 Effects 22 | . . 3 19 Shutdowns 12 | . . . 12 Energy Bleed 2 | . . 1 1 Interference 2 | . . 1 1 Matter Decay 2 | . . . 2 Damage (minor) 2 | . . 1 1 Damage (major) 2 | . . . 2 Siege Activations . | . . . . Robots Corrupted . | . . . . Combat Hostiles . | . . . . Parts Fried 1 | . . 1 . Impact Corruptions . | . . . . Robots Melted . | . . . . Combat Hostiles . | . . . . Parts Melted 4 | 1 1 1 1 Heat Transferred 2321 | 222 708 400 991 Parts Sabotaged . | . . . . Parts Stolen . | . . . . Parts Stripped . | . . . . Power Chain Reactions 1 | . . 1 . Alert | -11 -10 -9 -8 ------- Run | Yrd Mat Mat Mat Peak Influence 414 | 20 414 346 371 Initial 100 | . 13 90 100 Average 199 | 2 151 196 246 Maximum Alert Level 2 | . 2 1 1 Low Security (%) 50 | 100 71 56 29 Level 1 46 | . 12 43 70 Level 2 3 | . 16 . . Level 3 . | . . . . Level 4 . | . . . . Level 5 . | . . . . High Security . | . . . . Max Security . | . . . . Squads Dispatched 3 | . 1 . 2 Investigation 1 | . . . 1 Extermination . | . . . . Reinforcement 2 | . 1 . 1 Assault . | . . . . Garrison . | . . . . Intercept . | . . . . Searches Triggered . | . . . . Construction Impeded . | . . . . Haulers Reinforced . | . . . . Active Scanning Responses . | . . . . Cargo Convoy Interrupts . | . . . . Stealth | -11 -10 -9 -8 --------- Run | Yrd Mat Mat Mat Distress Signals 3 | . 1 1 1 Communications Jammed . | . . . . Distress Signals . | . . . . Times Spotted 61 | 1 15 15 30 Peak Tracking Total 6 | 1 3 4 6 Tactical Retreats 4 | . . 2 2 Traps | -11 -10 -9 -8 ------- Run | Yrd Mat Mat Mat Traps Triggered 1 | . . . 1 Indirectly . | . . . . Trap Hack Attempts . | . . . . Triggered . | . . . . Disarmed 5 | . . . 5 Reprogrammed . | . . . . Reused . | . . . . Traps Extracted . | . . . . Installed . | . . . . Triggered . | . . . . Machines | -11 -10 -9 -8 ---------- Run | Yrd Mat Mat Mat Machines Disabled 8 | . 6 1 1 Max in Single Turn 5 | . 5 1 1 Machines Repaired . | . . . . Machines Dismantled . | . . . . Machines Sabotaged . | . . . . Overloaded Fab Kills . | . . . . Hacking | -11 -10 -9 -8 --------- Run | Yrd Mat Mat Mat Machines Accessed 6 | . 3 . 3 Terminals 4 | . 2 . 2 Fabricators . | . . . . Repair Stations . | . . . . Recycling Units 1 | . 1 . . Scanalyzers 1 | . . . 1 Garrison Access . | . . . . Total Hacks 14 | . 7 . 7 Successful 10 | . 6 . 4 Failed 4 | . 1 . 3 Catastrophic . | . . . . Database Lockouts . | . . . . Manual . | . . . . Terminals 10 | . 5 . 5 Fabricators . | . . . . Repair Stations . | . . . . Recycling Units 2 | . 2 . . Scanalyzers 2 | . . . 2 Garrison Access . | . . . . Terminal Hacks 6 | . 4 . 2 Record 4 | . 3 . 1 Locate Traps 1 | . 1 . . Disarm Traps 1 | . . . 1 Fabricator Hacks . | . . . . Repair Station Hacks . | . . . . Recycling Unit Hacks 2 | . 2 . . Process 1 | . 1 . . Report Inventory 1 | . 1 . . Scanalyzer 2 | . . . 2 Insert Component 1 | . . . 1 Analyze 1 | . . . 1 Garrison Access Hacks . | . . . . Unauthorized Hacks . | . . . . Terminals . | . . . . Fabricators . | . . . . Repair Stations . | . . . . Recycling Units . | . . . . Scanalyzers . | . . . . Garrison Access . | . . . . Data Cores Recovered . | . . . . Used . | . . . . Hacking Detections 3 | . 2 . 1 Full Trace Events 2 | . 1 . 1 Feedback Events . | . . . . Feedback Blocked . | . . . . Robot Schematics Acquired . | . . . . Robots Built . | . . . . Authchips . | . . . . Time . | . . . . Total Robot Build Rating . | . . . . Part Schematics Acquired 1 | . . . 1 Parts Built . | . . . . Authchips . | . . . . Time . | . . . . Total Part Build Rating . | . . . . Parts Repaired . | . . . . Time . | . . . . Parts Recycled . | . . . . Recycled Matter . | . . . . Retrieved Matter . | . . . . Retrieved Components . | . . . . Parts Scanalyzed 1 | . . . 1 Part Schematics Acquired 1 | . . . 1 Parts Damaged . | . . . . Bothacking | -11 -10 -9 -8 ------------ Run | Yrd Mat Mat Mat Used RIF Installer . | . . . . Robots Hacked . | . . . . Non-combat . | . . . . Combat . | . . . . Robot Hacks Applied . | . . . . Relay Couplers Released . | . . . . Fabnet Peak Effective % . | . . . . Robots Rewired . | . . . . Allies Hacked . | . . . . Hacks Repelled . | . . . . Allies | -11 -10 -9 -8 -------- Run | Yrd Mat Mat Mat Total Allies . | . . . . Largest Group . | . . . . Highest-Rated Group . | . . . . Highest-Rated Ally . | . . . . Total Orders . | . . . . Ally Attacks . | . . . . Total Damage . | . . . . Kills . | . . . . Allies Corrupted . | . . . . Allies Melted . | . . . . Intel | -11 -10 -9 -8 ------- Run | Yrd Mat Mat Mat Robot Analysis Total . | . . . . Derelict Logs Recovered . | . . . . Drone Launches . | . . . . Drone Recoveries . | . . . . Exploration | -11 -10 -9 -8 ------------- Run | Yrd Mat Mat Mat Turns Passed 2149 | 99 446 695 909 Spaces Moved 1048 | 97 365 301 285 Core 27 | 20 . 3 4 Treads 236 | . . 147 89 Legs 192 | . . . 192 Wheels 593 | 77 365 151 . Hover . | . . . . Flight . | . . . . Fastest Speed 50 | 50 80 140 160 Average Speed 157 | 73 99 195 220 Slowest Speed 1100 | 80 140 800 1100 Overloaded Moves . | . . . . Propulsion Burnouts . | . . . . Robots Hopped . | . . . . Cave-ins Triggered . | . . . . Exploration Rate (%) 30 | 9 65 26 23 Regions Visited 3 Branch Regions . Pre-discovered Areas . | . . . . Known Exits Taken . | . . . . Unknown Exits Taken 3 | 1 1 1 . Scrap Searched . | . . . . Spaces Dug . | . . . . Terrain Destroyed 156 | . 67 39 50 Melee . | . . . . Projectile . | . . . . AOE 156 | . 67 39 50 Terrain Rammed . | . . . . Walls Destroyed . | . . . . Machines Disabled . | . . . . Actions | -11 -10 -9 -8 --------- Run | Yrd Mat Mat Mat Total 1300 | 111 405 351 433 Wait 38 | . . 11 27 Move 1045 | 96 364 300 285 Hop . | . . . . Pick Up 27 | 4 8 7 8 Fast Attach 18 | 5 3 1 9 Attach 24 | . 2 6 16 Detach . | . . . . Swap 6 | . 1 . 5 Drop 4 | . 1 . 3 Fire 132 | 5 21 26 80 Melee . | . . . . Ram 6 | 1 5 . . Kick . | . . . . Crush . | . . . . Escape Stasis . | . . . . Rewire . | . . . . Trap . | . . . . Miscellaneous . | . . . . Route ------- -11/Scrapyard -10/Materials (discovered 2 exits: [*Mat] / [*Min]) -9/Materials -8/Materials History --------- Turn | Location | Event 2 | -11/Scrapyard | Met Revision 17 73 | -11/Scrapyard | Discovered new exit (range 8) 100 | -11/Scrapyard | Entered Materials 223 | -10/Materials | Discovered new exit (range 8) 311 | -10/Materials | Build established: Mutant 386 | -10/Materials | Discovered new exit (range 15) 399 | -10/Materials | Lost 3 parts (1p1n1w) 420 | -10/Materials | Core integrity fell below 50% 546 | -10/Materials | Entered another Materials area 546 | -9/Materials | Evolved 2 slots: Utility x1, Weapon x1 1200 | -9/Materials | Discovered new exit (range 7) 1241 | -9/Materials | Entered another Materials area 1241 | -8/Materials | Evolved 2 slots: Power x1, Propulsion x1 1561 | -8/Materials | Lost 3 parts (1p2n) 1692 | -8/Materials | Build established: Scavenger-Tank 2122 | -8/Materials | Core integrity fell below 50% 2142 | -8/Materials | Core integrity fell below 20% 2150 | -8/Materials | Destroyed by G-47 Trooper with Particle Gun Last Messages --------------- Lgt. Nuclear Core destroyed. K-01 Serf collects debris. The unstable cave ceiling collapses. Knocked back. U-05 Engineer lays Concrete. K-01 Serf collects debris. U-05 Engineer lays Concrete. U-05 Engineer builds a Wall. Lgt. Assault Rifle destroyed. U-05 Engineer lays Concrete. Aluminum Leg destroyed. U-05 Engineer lays Concrete. Knocked back. U-05 Engineer lays Concrete. U-05 Engineer builds a Wall. Knocked back. U-05 Engineer builds a Wall. U-05 Engineer lays Concrete. Critical hit (Burn: +37). U-05 Engineer lays Concrete. Map ----- +----------------------------------------------------+ | ????# ?????# #######+######## | | ????#!! ?????# # # " | | ????#! ###### # # " | | ????# + # " | | ????# # # | | ????# # # " | | ????# ######## ### # " | | ????# ######## #?# # " | | ????# ###### # * # #?# # | | ???????????# #/// # #?# ##### | | ???????????# #/// # #?######???? | | ???????????# #//* # ########???? | | ???????????# #= # # = = #???? | | ???????????# # [% # # %== *##### | | ???????????# ####+### #=% *[ /%= | | ????#+###### #??# %+!" #%### | | ????# # #### # """ #=#?? | | ????# T # ;#;#; # """ # #?? | | ????# + // ######## #?? | | ????# ! # // #??????# #?? | | ????# ##" / #??????# #?? | | ????# ##T #??????# #?? | | ????########; " #??????# #?? | | ????????????# % t " #??????# ?? | | ????????????#% #??????? ?? | | ????????????#%@ /[ " #??????? ?? | | ????????????# //[ " #??????? ?? | | ????????????#]=/[ "" #?????? ?? | | ?????########=!!% """ #?????? ?? | | ?????# ; = = """ +?????? ?? | | ?????# """% " #?????? ?? | | ?????# """ % % #?????? ?? | | ?????# """ g= ##?????????? | | ?????#= #??????????? | | ?????# ] Hg #??????????? | | ?????#### u +??????????? | | ??????? ## ##############??????????? | | ??????"" # # #???????????????????? | | ?????""" ## #???????????????????? | | ?????""" ## ???????????????????? | | ?????? % ##??????????????????? | | ????? ##???????????????????? | | ??????#+# ???????????????????? | | ?????? ???????????????????? | | ?????? ?## ??????????????????? | | ?????????## ##????????????????????? | | ??????????? ??????????????????????? | | ??????????????????????????????????????? | | ??????????????????????????????????????? | | ??????????????????????????????????????? | +----------------------------------------------------+ Best States ------------- Heat Dissipation 53 Energy Generation 23 Energy Capacity 325 Matter Stores 352 Matter Capacity 400 Sight Range 18 Terrain Scan Density 10 Armor Coverage 225 Propulsion Shielding 33 Evasion (%) 50 Recoil Reduction 4 Particle Charging 15 Item Schematics ----------------- Lgt. Assault Rifle | -8/Materials | Scanalyzed Robot Schematics ------------------ None Fabricated ------------ Nothing Alien Tech Used ----------------- None Achievements -------------- Loot Pinata Oops Challenges ------------ None Game ------ Seed RagnarokMagneticTreads Manual? 0 Play Time 00:24:16 Cumulative 1.0 hours Start 2024.04.03 @ 22:32:55 End 2024.04.03 @ 22:53:54 Sessions 1 Manual Loads 0 Difficulty Rogue Special Mode None Game No. 3 Rogue 3 Adventurer 0 Explorer 0 Win Type - Total 0 Types 0/0/0/0/0/0/0/0/0 Lore% 1 Gallery% 4 Achievement% 4 Wizard Run 0 Options --------- Layout 1 ASCII 0 Keyboard 0 Movement Arrows Keybinds 0 Fullscreen 1 Font 24/Smallcaps Map View 50x35 Zoom Use 0% Tactical HUD 0 Map Filters NONE Filters NONE Steam 1 RUN: 6c2a9647-f7f5-48f2-a2b6-4d791bc02dfd